fUST/lending_fUST_20250111
["ID","MTS","AMOUNT","RATE_DAILY","PERIOD"]
[348429377,1736525477520,-1058.54,0.00023287,3]
[348429378,1736525477531,-500.0,0.00023287,3]
[348429379,1736525477541,-783.09,0.00023287,3]
[348429380,1736525477551,-500.0,0.00023287,3]
[348429381,1736525477560,-500.0,0.00023287,3]
[348429382,1736525477570,-500.0,0.00023287,3]
[348429383,1736525477582,-500.0,0.00023287,3]
[348429384,1736525477593,-500.0,0.00023287,3]
[348429385,1736525477607,-575.61865681,0.00023287,3]
[348429386,1736525477617,-500.0,0.00023287,3]
[348429387,1736525477626,-500.0,0.00023287,3]
[348429388,1736525477636,-500.0,0.00023287,3]
[348429389,1736525477645,-500.0,0.00023287,3]
[348429390,1736525477655,-500.0,0.00023287,3]
[348429391,1736525477665,-500.0,0.00023287,3]
[348429392,1736525477675,-500.0,0.00023287,3]
[348429393,1736525477684,-500.0,0.00023287,3]
[348429394,1736525477693,-500.0,0.00023287,3]
[348429395,1736525477703,-1070.72,0.00023287,3]
[348429396,1736525477712,-500.0,0.00023287,3]
[348429397,1736525477722,-500.0,0.00023287,3]
[348429398,1736525477731,-500.0,0.00023287,3]
[348429399,1736525477741,-549.48,0.00023287,3]
[348429400,1736525477751,-962.24,0.00023287,3]
[348429401,1736525477760,-539.34,0.00023287,3]
[348429402,1736525477770,-500.0,0.00023287,3]
[348429403,1736525477780,-500.0,0.00023287,3]
[348429404,1736525477790,-571.19,0.00023287,3]
[348429405,1736525477800,-500.0,0.00023287,3]
[348429406,1736525477809,-500.0,0.00023287,3]
[348429407,1736525477819,-500.0,0.00023287,3]
[348429408,1736525477942,-500.0,0.00023287,3]
[348429409,1736525477953,-555.70161836,0.00023287,3]
[348429410,1736525477964,-500.0,0.00023287,3]
[348429411,1736525477975,-500.0,0.00023287,3]
[348429412,1736525477985,-500.0,0.00023287,3]
[348429413,1736525477996,-500.0,0.00023287,3]
[348429414,1736525478006,-500.0,0.00023287,3]
[348429415,1736525478015,-500.0,0.00023287,3]
[348429416,1736525478025,-500.0,0.00023287,3]
[348429417,1736525478035,-503.10959947,0.00023287,3]
[348429418,1736525478047,-503.19528994,0.00023287,3]
[348429419,1736525478057,-500.0,0.00023287,3]
[348429420,1736525478067,-500.0,0.00023287,3]
[348429421,1736525478079,-500.0,0.00023287,3]
[348429422,1736525478089,-500.0,0.00023287,3]
[348429423,1736525478101,-500.0,0.00023287,3]
[348429424,1736525478111,-8270.29,0.00023287,3]
[348429425,1736525478122,-500.0,0.00023287,3]
[348429426,1736525478132,-500.0,0.00023287,3]
[348429427,1736525478143,-500.0,0.00023287,3]
[348429428,1736525478154,-500.0,0.00023287,3]
[348429429,1736525478164,-500.0,0.00023287,3]
[348429430,1736525478174,-500.0,0.00023287,3]
[348429431,1736525478184,-500.0,0.00023287,3]
[348429432,1736525478195,-512.1,0.00023287,3]
[348429433,1736525478204,-500.0,0.00023287,3]
[348429434,1736525478214,-500.0,0.00023287,3]
[348429435,1736525478224,-500.0,0.00023287,3]
[348429436,1736525478234,-500.0,0.00023287,3]
[348429437,1736525478244,-500.0,0.00023287,3]
[348429438,1736525478254,-500.0,0.00023287,3]
[348429439,1736525478268,-500.0,0.00023287,3]
[348429440,1736525478278,-500.0,0.00023287,3]
[348429441,1736525478288,-500.0,0.00023287,3]
[348429442,1736525478298,-500.0,0.00023287,3]
[348429443,1736525478309,-602.29,0.00023287,3]
[348429444,1736525478319,-500.0,0.00023287,3]
[348429445,1736525478329,-500.0,0.00023287,3]
[348429446,1736525478339,-500.0,0.00023287,3]
[348429447,1736525478352,-500.0,0.00023287,3]
[348429448,1736525478362,-658.6,0.00023287,3]
[348429449,1736525478371,-500.0,0.00023287,3]
[348429450,1736525478381,-500.0,0.00023287,3]
[348429451,1736525478391,-500.0,0.00023287,3]
[348429452,1736525478401,-1023.91,0.00023287,2]
[348429453,1736525478411,-512.59,0.00023287,3]
[348429454,1736525478420,-500.0,0.00023287,3]
[348429455,1736525478430,-500.0,0.00023287,3]
[348429456,1736525478440,-500.0,0.00023287,3]
[348429457,1736525478449,-500.0,0.00023287,3]
[348429458,1736525478460,-500.0,0.00023287,3]
[348429459,1736525478469,-500.0,0.00023287,3]
[348429460,1736525478479,-500.0,0.00023287,3]
[348429461,1736525478489,-500.0,0.00023287,3]
[348429462,1736525478499,-500.0,0.00023287,3]
[348429463,1736525478509,-500.0,0.00023287,3]
[348429464,1736525478519,-500.0,0.00023287,3]
[348429465,1736525478529,-500.0,0.00023287,3]
[348429466,1736525478538,-500.0,0.00023287,3]
[348429467,1736525478548,-295.17734194,0.00023287,3]
[348429468,1736525478564,-90.88749151,0.00023287,3]
[348429469,1736525478574,-952.7,0.00023287,3]
[348429470,1736525478585,-445.73565815,0.00023287,3]
[348429471,1736525478595,-165.23135772,0.00023287,3]
[348429472,1736525478609,-334.76864228,0.00023287,3]
[348429473,1736525478618,-500.0,0.00023287,3]
[348429474,1736525478627,-500.0,0.00023287,3]
[348429475,1736525478637,-505.29237894,0.00023287,3]
[348429476,1736525478647,-500.0,0.00023287,3]
[348429477,1736525478656,-500.0,0.00023287,3]
[348429478,1736525478665,-181.36302208,0.00023287,3]
[348429479,1736525478679,-318.63697792,0.00023287,3]
[348429480,1736525478689,-522.29005079,0.00023287,3]
[348429481,1736525478699,-500.0,0.00023287,3]
[348429482,1736525478709,-601.15,0.00023287,3]
[348429483,1736525478719,-795.26,0.00023287,3]
[348429484,1736525478729,-712.66297129,0.00023287,3]
[348429485,1736525478741,-2478.51702871,0.00023287,3]
[348429486,1736525478751,-689.85,0.00023287,3]
[348429487,1736525478760,-500.0,0.00023287,3]
[348429488,1736525478769,-500.0,0.00023287,3]
[348429489,1736525478779,-500.0,0.00023287,3]
[348429490,1736525478789,-573.69,0.00023287,3]
[348429491,1736525478799,-500.0,0.00023287,3]
[348429492,1736525478809,-500.0,0.00023287,3]
[348429493,1736525478818,-500.0,0.00023287,3]
[348429494,1736525478828,-500.0,0.00023287,3]
[348429495,1736525478837,-767.35,0.00023287,3]
[348429496,1736525478849,-500.0,0.00023287,3]
[348429497,1736525478859,-500.0,0.00023287,3]
[348429498,1736525478869,-500.0,0.00023287,3]
[348429499,1736525478879,-500.0,0.00023287,3]
[348429500,1736525478889,-500.0,0.00023287,3]
[348429501,1736525478899,-500.0,0.00023287,3]
[348429502,1736525478908,-500.0,0.00023287,3]
[348429503,1736525478918,-500.0,0.00023287,3]
[348429504,1736525478927,-500.0,0.00023287,3]
[348429505,1736525478937,-500.0,0.00023287,3]
[348429506,1736525478947,-500.0,0.00023287,3]
[348429507,1736525478956,-583.33,0.00023287,3]
[348429508,1736525478966,-500.0,0.00023287,3]
[348429509,1736525478976,-570.61,0.00023287,3]
[348429510,1736525478987,-504.51873577,0.00023287,3]
[348429511,1736525478997,-500.0,0.00023287,3]
[348429512,1736525479006,-500.0,0.00023287,3]
[348429513,1736525479016,-807.43,0.00023287,3]
[348429514,1736525479026,-500.0,0.00023287,3]
[348429515,1736525479035,-1557.45,0.00023287,3]
[348429516,1736525479045,-500.0,0.00023287,3]
[348429517,1736525479055,-500.0,0.00023287,3]
[348429518,1736525479065,-500.0,0.00023287,3]
[348429519,1736525479075,-662.67,0.00023287,3]
[348429520,1736525479085,-704.52,0.00023287,3]
[348429521,1736525479095,-500.0,0.00023287,3]
[348429522,1736525479106,-2637.91,0.00023287,3]
[348429523,1736525479116,-500.0,0.00023287,3]
[348429524,1736525479126,-500.0,0.00023287,3]
[348429525,1736525479136,-500.0,0.00023287,3]
[348429526,1736525479145,-500.0,0.00023287,3]
[348429527,1736525479155,-3133.9,0.00023287,2]
[348429528,1736525479165,-543.06,0.00023287,3]
[348429529,1736525479175,-500.0,0.00023287,3]
[348429530,1736525479185,-500.0,0.00023287,3]
[348429531,1736525479195,-500.0,0.00023287,3]
[348429532,1736525479204,-500.0,0.00023287,3]
[348429533,1736525479214,-500.0,0.00023287,3]
[348429534,1736525479224,-500.0,0.00023287,3]
[348429535,1736525479234,-500.0,0.00023287,3]
[348429536,1736525479243,-500.0,0.00023287,3]
[348429537,1736525479253,-500.0,0.00023287,3]
[348429538,1736525479263,-921.96,0.00023287,3]
[348429539,1736525479276,-499.85445729,0.00023287,3]
[348429540,1736525479286,-7558.76,0.00023287,3]
[348429541,1736525479295,-500.0,0.00023287,3]
[348429542,1736525479305,-500.0,0.00023287,3]
[348429543,1736525479315,-500.0,0.00023287,3]
[348429544,1736525479324,-500.0,0.00023287,3]
[348429545,1736525479334,-4090.24,0.00023287,3]
[348429546,1736525479346,-1139.47,0.00023287,3]
[348429547,1736525479358,-500.0,0.00023287,3]
[348429548,1736525479367,-500.0,0.00023287,3]
[348429549,1736525479378,-500.0,0.00023287,3]
[348429550,1736525479388,-1531.18,0.00023287,3]
[348429551,1736525479399,-590.51,0.00023287,3]
[348429552,1736525479409,-8033.98,0.00023287,3]
[348429553,1736525479419,-500.0,0.00023287,3]
[348429554,1736525479428,-500.0,0.00023287,3]
[348429555,1736525479439,-500.0,0.00023287,3]
[348429556,1736525479448,-1488.06,0.00023287,3]
[348429557,1736525479457,-500.0,0.00023287,3]
[348429558,1736525479467,-500.0,0.00023287,3]
[348429559,1736525479477,-500.0,0.00023287,3]
[348429560,1736525479486,-519.59,0.00023287,3]
[348429561,1736525479496,-1258.0,0.00023287,3]
[348429562,1736525479506,-500.0,0.00023287,3]
[348429563,1736525479516,-500.0,0.00023287,3]
[348429564,1736525479525,-500.0,0.00023287,3]
[348429565,1736525479535,-500.0,0.00023287,3]
[348429566,1736525479545,-500.0,0.00023287,3]
[348429567,1736525479555,-500.0,0.00023287,3]
[348429568,1736525479564,-500.0,0.00023287,3]
[348429569,1736525479573,-500.0,0.00023287,3]
[348429570,1736525479584,-500.0,0.00023287,3]
[348429571,1736525479594,-500.0,0.00023287,3]
[348429572,1736525479607,-500.0,0.00023287,3]
[348429573,1736525479617,-1707.96,0.00023287,2]
[348429574,1736525479626,-500.0,0.00023287,3]
[348429575,1736525479636,-500.0,0.00023287,3]
[348429576,1736525479645,-500.0,0.00023287,3]
[348429577,1736525479654,-1325.02,0.00023287,3]
[348429578,1736525479663,-500.0,0.00023287,3]
[348429579,1736525479674,-394.89295032,0.00023287,3]
[348429580,1736525479684,-500.0,0.00023287,3]
[348429581,1736525479693,-500.0,0.00023287,3]
[348429582,1736525479704,-983.6,0.00023287,3]
[348429583,1736525479716,-2607.37,0.00023287,3]
[348429584,1736525479728,-1333.68,0.00023287,3]
[348429585,1736525479737,-2896.28,0.00023287,3]
[348429586,1736525479747,-500.0,0.00023287,3]
[348429587,1736525479756,-500.0,0.00023287,3]
[348429588,1736525479765,-500.0,0.00023287,3]
[348429589,1736525479775,-500.0,0.00023287,3]
[348429590,1736525479785,-500.0,0.00023287,3]
[348429591,1736525479795,-500.0,0.00023287,3]
[348429592,1736525479806,-500.0,0.00023287,3]
[348429593,1736525479815,-1319.13451098,0.00023287,2]
[348429594,1736525479825,-500.0,0.00023287,3]
[348429595,1736525479835,-500.0,0.00023287,3]
[348429596,1736525479845,-500.0,0.00023287,3]
[348429597,1736525479858,-500.0,0.00023287,3]
[348429598,1736525479868,-12.32038907,0.00023287,3]
[348429599,1736525479900,-778.89961093,0.00023287,3]
[348429600,1736525479910,-500.0,0.00023287,3]
[348429601,1736525479919,-1061.67,0.00023287,3]
[348429602,1736525479929,-874.96,0.00023287,3]
[348429603,1736525479938,-929.06,0.00023287,3]
[348429604,1736525479948,-500.0,0.00023287,3]
[348429605,1736525479958,-514.55,0.00023287,3]
[348429606,1736525479968,-500.0,0.00023287,3]
[348429607,1736525479978,-740.23,0.00023287,3]
[348429608,1736525479988,-642.0,0.000233,2]
[348429609,1736525479999,-2000.0,0.000233,2]
[348429610,1736525480009,-158.77,0.000233,31]
[348429611,1736525480019,-158.77,0.000233,31]
[348429612,1736525480029,-158.77,0.000233,31]
[348429613,1736525480040,-158.77,0.000233,31]
[348429614,1736525480051,-158.77,0.000233,31]
[348429615,1736525480063,-158.77,0.000233,31]
[348429616,1736525480072,-158.77,0.000233,31]
[348429617,1736525480082,-391.24037931,0.00023328,7]
[348429618,1736525480095,-4379.75962069,0.00023328,7]
[348429619,1736525480107,-797.79909179,0.00023378,2]
[348429620,1736525480118,-851.428,0.000234,2]
[348429621,1736525480127,-500.0,0.00023437,2]
[348429622,1736525480137,-150.0,0.00023473,2]
[348429623,1736525480146,-15407.13980622,0.00023478,10]
[348429624,1736525480158,-2124.49999955,0.00023478,10]
[348429625,1736525480169,-1050.0,0.00023478,10]
[348429626,1736525480181,-13660.33197495,0.00023478,10]
[348429627,1736525480193,-7759.6466058,0.00023478,10]
[348429628,1736525480204,-722.48837836,0.00023478,10]
[348429629,1736525480216,-14283.87453605,0.00023478,10]
[348429630,1736525480385,-394.0,0.0001956,2]
[348429631,1736525480396,-500.0,0.00021917,3]
[348429632,1736525480406,-2705.15518922,0.00023478,10]
[348429633,1736525480419,-9785.6782,0.00023478,10]
[348429634,1736525480431,-3304.00000016,0.00023478,10]
[348429635,1736525480443,-2801.60948906,0.00023478,10]
[348429636,1736525480460,-394.0,0.0002256,2]
[348429637,1736525480470,-3753.81492944,0.00023478,10]
[348429638,1736525482670,150.0,0.00013,10]
[348429645,1736525874502,400.0,0.00013973,2]
[348429650,1736526000288,751.532,0.00023,120]
[348429651,1736526000319,248.468,0.00023,120]
[348429717,1736526632216,-281.13167656,0.00016,2]
[348429719,1736526632226,-250.0,0.00017848,2]
[348429721,1736526632237,-190.53928266,0.00018048,2]
[348429723,1736526632246,-187.36,0.00018051,2]
[348429725,1736526632255,-1178.54317091,0.00018057,2]
[348429727,1736526632265,-155.26,0.000186,2]
[348429729,1736526632274,-263.81679474,0.00019,2]
[348429731,1736526632284,-179.667672,0.00019178,2]
[348429733,1736526632294,-563.031,0.00019231,2]
[348429735,1736526632305,-192.47572116,0.00019231,2]
[348429737,1736526632315,-24900.0,0.00019318,2]
[348429738,1736526632324,-1737.69486065,0.00019352,2]
[348429741,1736526632335,-542.00606954,0.0002,2]
[348429743,1736526632344,-425.75477398,0.00020352,2]
[348429745,1736526632354,-535.0,0.00020353,2]
[348429747,1736526632366,-2079.0,0.00020353,2]
[348429748,1736526632376,-2318.0,0.00020353,2]
[348429750,1736526632385,-394.0,0.00020353,2]
[348429752,1736526632395,-400.0,0.00020447,2]
[348429754,1736526632405,-466.84452626,0.000209,2]
[348429756,1736526632415,-1000.0,0.00021,21]
[348429758,1736526632425,-1000.0,0.00021,2]
[348429760,1736526632435,-263.49683613,0.00021,2]
[348429762,1736526632445,-4796.27840998,0.00021,2]
[348429764,1736526632454,-466.84452626,0.00021198,2]
[348429766,1736526632464,-1873.62651412,0.00021378,2]
[348429768,1736526632473,-466.84452626,0.00021496,2]
[348429770,1736526632483,-6916.770646,0.000215,2]
[348429772,1736526632492,-466.84452626,0.00021793,2]
[348429774,1736526632502,-5218.29729425,0.00021904,2]
[348429776,1736526632511,-187.36,0.00021907,2]
[348429778,1736526632521,-151.0,0.00021916,2]
[348429780,1736526632530,-151.0,0.00021917,2]
[348429783,1736526632540,-151.909615,0.00021917,2]
[348429785,1736526632549,-500.0,0.00021917,3]
[348429787,1736526632559,-500.0,0.00021917,3]
[348429789,1736526632568,-500.0,0.00021917,3]
[348429790,1736526632581,-500.0,0.00021917,3]
[348429792,1736526632590,-500.0,0.00021917,3]
[348429794,1736526632599,-500.0,0.00021917,3]
[348429796,1736526632609,-500.0,0.00021917,3]
[348429798,1736526632622,-500.0,0.00021917,3]
[348429801,1736526632631,-500.0,0.00021917,2]
[348429803,1736526632641,-500.0,0.00021917,3]
[348429805,1736526632652,-504.21761115,0.00021917,3]
[348429807,1736526632662,-500.0,0.00021917,3]
[348429809,1736526632672,-500.0,0.00021917,3]
[348429811,1736526632681,-500.0,0.00021917,3]
[348429813,1736526632691,-504.15733938,0.00021917,3]
[348429815,1736526632700,-500.0,0.00021917,3]
[348429817,1736526632710,-500.0,0.00021917,3]
[348429819,1736526632720,-500.0,0.00021917,3]
[348429821,1736526632730,-500.0,0.00021917,3]
[348429823,1736526632740,-500.0,0.00021917,3]
[348429825,1736526632750,-538.68209613,0.00021917,3]
[348429827,1736526632759,-500.0,0.00021917,3]
[348429829,1736526632770,-500.0,0.00021917,3]
[348429831,1736526632779,-500.0,0.00021917,3]
[348429833,1736526632789,-500.40848533,0.00021917,3]
[348429835,1736526632800,-500.0,0.00021917,3]
[348429837,1736526632810,-500.0,0.00021917,3]
[348429839,1736526632819,-500.0,0.00021917,3]
[348429841,1736526632829,-500.0,0.00021917,3]
[348429843,1736526632839,-500.0,0.00021917,3]
[348429845,1736526632849,-500.0,0.00021917,3]
[348429847,1736526632859,-500.0,0.00021917,3]
[348429849,1736526632870,-500.76543841,0.00021917,3]
[348429851,1736526632879,-500.0,0.00021917,3]
[348429853,1736526632889,-500.0,0.00021917,3]
[348429855,1736526632898,-500.0,0.00021917,3]
[348429857,1736526632908,-500.0,0.00021917,3]
[348429859,1736526632918,-500.0,0.00021917,3]
[348429861,1736526632928,-255.64785281,0.00021917,3]
[348429863,1736526632938,-500.0,0.00021917,3]
[348429865,1736526632949,-500.0,0.00021917,3]
[348429867,1736526632958,-500.0,0.00021917,3]
[348429869,1736526632967,-500.0,0.00021917,3]
[348429871,1736526632978,-500.0,0.00021917,3]
[348429873,1736526632987,-500.0,0.00021917,3]
[348429875,1736526632996,-500.0,0.00021917,3]
[348429878,1736526633006,-500.0,0.00021917,3]
[348429880,1736526633015,-315.07720878,0.00021917,3]
[348429882,1736526633025,-500.0,0.00021917,3]
[348429884,1736526633034,-500.0,0.00021917,3]
[348429886,1736526633043,-500.0,0.00021917,3]
[348429888,1736526633052,-288.18570281,0.00021917,3]
[348429890,1736526633062,-500.0,0.00021917,3]
[348429892,1736526633072,-500.0,0.00021917,3]
[348429894,1736526633081,-500.0,0.00021917,3]
[348429896,1736526633091,-500.0,0.00021917,3]
[348429898,1736526633100,-500.0,0.00021917,3]
[348429900,1736526633111,-500.0,0.00021917,3]
[348429902,1736526633121,-342.05404354,0.00021917,3]
[348429913,1736526633218,-157.94595646,0.00021917,3]
[348429915,1736526633229,-500.0,0.00021917,3]
[348429917,1736526633238,-150.54228709,0.00021917,3]
[348429919,1736526633248,-500.0,0.00021917,3]
[348429921,1736526633258,-500.0,0.00021917,3]
[348429923,1736526633268,-491.24811768,0.00021917,3]
[348429925,1736526633278,-767.93,0.00021917,2]
[348429927,1736526633288,-500.0,0.00021917,3]
[348429929,1736526633298,-501.44401106,0.00021917,3]
[348429931,1736526633308,-500.0,0.00021917,3]
[348429933,1736526633318,-500.0,0.00021917,3]
[348429935,1736526633327,-500.0,0.00021917,3]
[348429937,1736526633337,-500.0,0.00021917,3]
[348429939,1736526633346,-221.52976001,0.00021917,3]
[348429949,1736526633437,-439.565,0.00018056,2]
[348429951,1736526633449,-60.435,0.00018056,2]
[348429953,1736526633460,-240.63028843,0.00018056,2]
[348429955,1736526633470,-500.0,0.00018056,2]
[348429957,1736526633480,-500.0,0.00018056,2]
[348429959,1736526633490,-226.16411722,0.00018056,2]
[348429961,1736526633500,-500.0,0.00018056,2]
[348429963,1736526633510,-500.0,0.00018056,2]
[348429965,1736526633520,-500.0,0.00018056,2]
[348429967,1736526633530,-500.0,0.00018056,2]
[348429969,1736526633540,-500.0,0.00018056,2]
[348429971,1736526633550,-168.69630881,0.0001863,2]
[348429973,1736526633560,-500.0,0.00019178,2]
[348429975,1736526633572,-500.0,0.00019178,2]
[348429977,1736526633583,-278.47023999,0.00021917,3]
[348429979,1736526633592,-500.0,0.00021917,3]
[348429981,1736526633602,-500.0,0.00021917,3]
[348429983,1736526633616,-500.0,0.00021917,3]
[348429985,1736526633626,-500.0,0.00021917,3]
[348429987,1736526633636,-500.0,0.00021917,3]
[348429989,1736526633649,-500.0,0.00021917,3]
[348429991,1736526633658,-500.0,0.00021917,3]
[348429993,1736526633668,-500.0,0.00021917,3]
[348429995,1736526633678,-518.69628141,0.00021917,3]
[348429997,1736526633688,-500.0,0.00021917,3]
[348429998,1736526633698,-500.0,0.00021917,3]
[348430000,1736526633707,-500.0,0.00021917,3]
[348430002,1736526633718,-500.0,0.00021917,3]
[348430004,1736526633727,-500.65482709,0.00021917,3]
[348430006,1736526633737,-500.0,0.00021917,3]
[348430008,1736526633747,-555.72586107,0.00021917,3]
[348430010,1736526633757,-500.0,0.00021917,3]
[348430012,1736526633767,-500.0,0.00021917,3]
[348430014,1736526633777,-883.67,0.00021917,3]
[348430016,1736526633787,-500.0,0.00021917,3]
[348430018,1736526633797,-500.0,0.00021917,3]
[348430020,1736526633807,-500.0,0.00021917,3]
[348430022,1736526633816,-500.0,0.00021917,3]
[348430023,1736526633825,-500.0,0.00021917,3]
[348430026,1736526633836,-500.0,0.00021917,3]
[348430027,1736526633845,-500.0,0.00021917,3]
[348430029,1736526633855,-500.0,0.00021917,3]
[348430032,1736526633867,-500.0,0.00021917,3]
[348430034,1736526633877,-501.81712995,0.00021917,3]
[348430035,1736526633887,-500.0,0.00021917,3]
[348430037,1736526633897,-500.0,0.00021917,3]
[348430039,1736526633906,-503.89050975,0.00021917,3]
[348430041,1736526633916,-295.60872544,0.00021917,3]
[348430043,1736526633926,-500.0,0.00021917,3]
[348430045,1736526633936,-98.03001958,0.00021917,3]
[348430048,1736526633950,-401.96998042,0.00021917,3]
[348430050,1736526633959,-500.0,0.00021917,3]
[348430052,1736526633969,-201.77729588,0.00021917,3]
[348430054,1736526633981,-298.22270412,0.00021917,3]
[348430056,1736526633991,-500.0,0.00021917,3]
[348430058,1736526634001,-500.0,0.00021917,3]
[348430060,1736526634010,-500.0,0.00021917,3]
[348430062,1736526634020,-500.0,0.00021917,3]
[348430064,1736526634030,-500.0,0.00021917,3]
[348430066,1736526634040,-500.0,0.00021917,3]
[348430068,1736526634050,-500.0,0.00021917,3]
[348430070,1736526634060,-221.05989143,0.00021917,3]
[348430072,1736526634070,-239.03910027,0.00021917,3]
[348430074,1736526634080,-500.0,0.00021917,3]
[348430076,1736526634089,-2542.87,0.00021917,3]
[348430077,1736526634100,-500.0,0.00021917,3]
[348430079,1736526634110,-500.0,0.00021917,3]
[348430080,1736526634124,-633.64,0.00021917,3]
[348430082,1736526634135,-500.0,0.00021917,3]
[348430084,1736526634145,-500.0,0.00021917,3]
[348430085,1736526634156,-500.0,0.00021917,3]
[348430087,1736526634166,-500.0,0.00021917,3]
[348430089,1736526634176,-500.38936238,0.00021917,3]
[348430090,1736526634186,-500.0,0.00021917,3]
[348430091,1736526634196,-528.11865089,0.00021917,3]
[348430092,1736526634206,-428.50661941,0.00021917,3]
[348430093,1736526634216,-500.0,0.00021917,3]
[348430095,1736526634226,-500.0,0.00021917,3]
[348430097,1736526634236,-500.0,0.00021917,3]
[348430099,1736526634246,-500.0,0.00021917,3]
[348430101,1736526634256,-500.0,0.00021917,3]
[348430103,1736526634265,-500.0,0.00021917,3]
[348430105,1736526634275,-883.43,0.00021917,3]
[348430107,1736526634285,-500.0,0.00021917,3]
[348430109,1736526634295,-500.0,0.00021917,3]
[348430111,1736526634304,-500.0,0.00021917,3]
[348430112,1736526634314,-500.0,0.00021917,3]
[348430113,1736526634324,-500.0,0.00021917,3]
[348430115,1736526634334,-500.0,0.00021917,3]
[348430117,1736526634344,-500.0,0.00021917,3]
[348430119,1736526634354,-500.0,0.00021917,3]
[348430121,1736526634368,-721.68,0.00021917,3]
[348430123,1736526634378,-500.0,0.00021917,3]
[348430125,1736526634388,-500.0,0.00021917,3]
[348430127,1736526634399,-500.0,0.00021917,3]
[348430129,1736526634409,-500.0,0.00021917,3]
[348430131,1736526634419,-500.0,0.00021917,3]
[348430133,1736526634429,-500.0,0.00021917,3]
[348430135,1736526634439,-500.0,0.00021917,3]
[348430137,1736526634449,-500.0,0.00021917,3]
[348430139,1736526634459,-500.0,0.00021917,3]
[348430141,1736526634468,-564.05216286,0.00021917,3]
[348430143,1736526634479,-500.0,0.00021917,3]
[348430145,1736526634490,-500.0,0.00021917,3]
[348430147,1736526634499,-500.0,0.00021917,3]
[348430149,1736526634509,-500.0,0.00021917,3]
[348430151,1736526634519,-500.0,0.00021917,3]
[348430153,1736526634528,-500.0,0.00021917,3]
[348430155,1736526634538,-500.0,0.00021917,3]
[348430157,1736526634548,-500.0,0.00021917,3]
[348430159,1736526634558,-500.0,0.00021917,3]
[348430161,1736526634571,-500.0,0.00021917,3]
[348430163,1736526634581,-878.22,0.00021917,3]
[348430165,1736526634591,-500.0,0.00021917,3]
[348430167,1736526634600,-500.0,0.00021917,3]
[348430169,1736526634610,-500.0,0.00021917,3]
[348430171,1736526634622,-500.0,0.00021917,3]
[348430173,1736526634631,-500.0,0.00021917,3]
[348430175,1736526634642,-500.0,0.00021917,3]
[348430177,1736526634652,-377.93379025,0.00021917,3]
[348430184,1736526634716,-500.0,0.00018056,2]
[348430186,1736526634726,-500.0,0.00018056,2]
[348430188,1736526634736,-500.0,0.00018056,2]
[348430190,1736526634746,-377.86705578,0.00018056,2]
[348430311,1736526638291,-122.13294422,0.00018056,2]
[348430313,1736526638301,-500.0,0.00018056,2]
[348430315,1736526638311,-500.0,0.00018056,2]
[348430317,1736526638321,-500.0,0.00018056,2]